fUSD/lending_fUSD_20260405
["ID","MTS","AMOUNT","RATE_DAILY","PERIOD"]
[419791143,1775381451400,-150.0,0.000144,2]
[419791144,1775381451409,-150.0,0.000144,2]
[419791145,1775381451418,-150.0,0.000144,2]
[419791146,1775381451427,-150.0,0.00014418,2]
[419791147,1775381451438,-163.01,0.00014419,2]
[419791148,1775381451447,-150.0,0.00014421,2]
[419791149,1775381451456,-508.0,0.00014423,3]
[419791150,1775381451466,-150.0,0.00014426,2]
[419791151,1775381451475,-150.0,0.00014429,2]
[419791152,1775381451484,-150.0,0.00014429,2]
[419791153,1775381451495,-150.0,0.00014432,2]
[419791154,1775381451504,-626.724,0.00014434,2]
[419791155,1775381451514,-3637.957,0.00014434,2]
[419791156,1775381451524,-150.0,0.00014436,2]
[419791157,1775381451534,-200.0,0.00014439,2]
[419791158,1775381451543,-1592.87721993,0.00014439,2]
[419791159,1775381451552,-194.72792766,0.00014439,2]
[419791160,1775381451563,-829.12830338,0.00014439,2]
[419791161,1775381451572,-200.0,0.00014439,2]
[419791162,1775381451583,-369.5568607,0.00014439,2]
[419791163,1775381451593,-150.0,0.00014442,2]
[419791164,1775381451603,-1000.0,0.00014444,7]
[419791165,1775381451615,-150.0,0.00014452,2]
[419791166,1775381451624,-150.0,0.00014453,2]
[419791167,1775381451634,-150.0,0.00014454,2]
[419791168,1775381451644,-150.0,0.00014458,2]
[419791169,1775381451655,-150.0,0.00014458,2]
[419791170,1775381451664,-150.0,0.00014463,2]
[419791171,1775381451674,-150.0,0.00014464,2]
[419791172,1775381451683,-150.0,0.0001447,2]
[419791173,1775381451693,-150.0,0.00014472,2]
[419791174,1775381451703,-150.0,0.00014477,2]
[419791175,1775381451712,-150.0,0.00014484,2]
[419791176,1775381451722,-150.0,0.00014487,2]
[419791177,1775381451732,-150.0,0.00014487,2]
[419791178,1775381451743,-150.0,0.00014489,2]
[419791179,1775381451755,-150.0,0.0001449,2]
[419791180,1775381451766,-150.0,0.00014496,2]
[419791181,1775381451776,-150.0,0.00014503,2]
[419791182,1775381451788,-150.0,0.00014505,2]
[419791183,1775381451799,-150.0,0.00014507,2]
[419791184,1775381451810,-150.0,0.00014508,2]
[419791185,1775381451820,-1613.0,0.00014513,2]
[419791186,1775381451831,-6453.0,0.00014513,2]
[419791187,1775381451841,-150.0,0.00014516,2]
[419791188,1775381451853,-150.0,0.00014516,2]
[419791189,1775381451864,-2129.0,0.00014518,2]
[419791190,1775381451875,-150.0,0.00014526,2]
[419791191,1775381451885,-150.0,0.00014526,2]
[419791192,1775381451895,-150.0,0.00014528,2]
[419791193,1775381451904,-150.0,0.00014529,2]
[419791194,1775381451914,-150.0,0.00014539,2]
[419791195,1775381451924,-150.0,0.00014544,2]
[419791196,1775381451934,-150.0,0.00014545,2]
[419791197,1775381451943,-150.0,0.00014545,2]
[419791198,1775381451953,-150.0,0.00014547,2]
[419791199,1775381451963,-150.0,0.00014555,2]
[419791200,1775381451972,-150.0,0.0001456,2]
[419791201,1775381451981,-150.0,0.0001456,2]
[419791202,1775381451994,-150.0,0.00014562,2]
[419791203,1775381452004,-1074.26,0.00014567,2]
[419791204,1775381452013,-150.0,0.00014568,2]
[419791205,1775381452023,-150.0,0.00014575,2]
[419791206,1775381452032,-150.0,0.00014575,2]
[419791207,1775381452042,-150.0,0.00014578,2]
[419791208,1775381452051,-150.0,0.0001458,2]
[419791209,1775381452061,-150.0,0.00014581,2]
[419791210,1775381452070,-1000.0,0.00014584,2]
[419791211,1775381452080,-1000.0,0.00014585,2]
[419791212,1775381452090,-150.0,0.00014589,2]
[419791213,1775381452099,-150.0,0.00014592,2]
[419791214,1775381452108,-150.0,0.00014598,2]
[419791215,1775381452118,-150.0,0.00014604,2]
[419791216,1775381452128,-150.0,0.00014604,2]
[419791217,1775381452138,-150.0,0.00014606,2]
[419791218,1775381452147,-150.0,0.00014609,2]
[419791219,1775381452157,-150.0,0.00014611,2]
[419791220,1775381452166,-150.0,0.00014613,2]
[419791221,1775381452175,-150.0,0.00014616,2]
[419791222,1775381452185,-150.0,0.00014624,2]
[419791223,1775381452195,-150.0,0.00014632,2]
[419791224,1775381452205,-150.0,0.00014632,2]
[419791225,1775381452214,-150.0,0.00014633,2]
[419791226,1775381452224,-150.0,0.00014633,2]
[419791227,1775381452234,-150.0,0.00014634,2]
[419791228,1775381452244,-1000.0,0.00014645,2]
[419791229,1775381452254,-150.0,0.00014652,2]
[419791230,1775381452264,-150.0,0.00014653,2]
[419791231,1775381452274,-150.0,0.00014656,2]
[419791232,1775381452284,-150.0,0.00014658,2]
[419791233,1775381452294,-150.0,0.00014662,2]
[419791234,1775381452304,-150.0,0.00014662,2]
[419791235,1775381452314,-150.0,0.00014667,2]
[419791236,1775381452323,-150.0,0.00014667,2]
[419791237,1775381452332,-150.0,0.00014667,2]
[419791238,1775381452342,-150.0,0.0001467,2]
[419791239,1775381452352,-150.0,0.00014674,2]
[419791240,1775381452361,-150.0,0.00014678,2]
[419791241,1775381452371,-150.0,0.00014684,2]
[419791242,1775381452380,-150.0,0.00014688,2]
[419791243,1775381452389,-150.0,0.00014688,2]
[419791244,1775381452399,-150.0,0.00014691,2]
[419791245,1775381452408,-150.0,0.00014691,2]
[419791246,1775381452418,-150.0,0.00014695,2]
[419791247,1775381452427,-150.0,0.00014706,2]
[419791248,1775381452437,-150.0,0.0001471,2]
[419791249,1775381452446,-472.24311998,0.0001471,2]
[419791250,1775381452456,-150.0,0.00014716,2]
[419791251,1775381452465,-150.0,0.0001472,2]
[419791252,1775381452474,-150.0,0.0001472,2]
[419791253,1775381452484,-150.0,0.0001472,2]
[419791254,1775381452493,-150.0,0.0001472,2]
[419791255,1775381452503,-150.0,0.00014724,2]
[419791256,1775381452512,-150.0,0.00014735,2]
[419791257,1775381452521,-150.0,0.00014737,2]
[419791258,1775381452532,-150.0,0.00014742,2]
[419791259,1775381452542,-150.0,0.00014748,2]
[419791260,1775381452552,-150.0,0.00014749,2]
[419791261,1775381452561,-150.0,0.00014749,2]
[419791262,1775381452573,-150.0,0.00014752,2]
[419791263,1775381452583,-150.0,0.00014756,2]
[419791264,1775381452592,-150.0,0.00014758,2]
[419791265,1775381452601,-150.0,0.0001476,2]
[419791266,1775381452611,-150.0,0.00014761,2]
[419791267,1775381452620,-1000.0,0.00014765,2]
[419791268,1775381452630,-262.56,0.00014773,2]
[419791269,1775381452639,-150.0,0.00014773,2]
[419791270,1775381452650,-150.0,0.00014778,2]
[419791271,1775381452659,-150.0,0.00014778,2]
[419791272,1775381452669,-150.0,0.00014778,2]
[419791273,1775381452678,-150.0,0.00014779,2]
[419791274,1775381452688,-150.0,0.00014784,2]
[419791275,1775381452698,-150.0,0.00014787,2]
[419791276,1775381452707,-262.56,0.00014794,2]
[419791277,1775381452717,-1500.0,0.00014795,2]
[419791278,1775381452727,-1500.0,0.00014795,2]
[419791279,1775381452736,-1500.0,0.00014795,2]
[419791280,1775381452746,-1500.0,0.00014795,2]
[419791281,1775381452756,-1227.692277,0.00014795,2]
[419791282,1775381452766,-1500.0,0.00014795,2]
[419791283,1775381452776,-1515.96545288,0.00014795,2]
[419791284,1775381452785,-1500.0,0.00014795,2]
[419791285,1775381452795,-953.31303788,0.00014795,2]
[419791286,1775381452805,-1500.0,0.00014795,2]
[419791287,1775381452814,-1500.0,0.00014795,2]
[419791288,1775381452825,-1500.0,0.00014795,2]
[419791289,1775381452834,-1500.0,0.00014795,2]
[419791290,1775381452844,-1500.0,0.00014795,2]
[419791291,1775381452854,-1500.0,0.00014795,2]
[419791292,1775381452864,-1500.0,0.00014795,2]
[419791293,1775381452874,-1500.0,0.00014795,2]
[419791294,1775381452885,-1500.0,0.00014795,2]
[419791295,1775381452894,-1000.0,0.00014795,2]
[419791296,1775381452904,-1002.83538283,0.00014795,2]
[419791297,1775381452915,-1500.0,0.00014795,2]
[419791298,1775381452925,-1500.0,0.00014795,2]
[419791299,1775381452937,-1500.0,0.00014795,2]
[419791300,1775381452947,-1500.0,0.00014795,2]
[419791301,1775381452957,-1500.0,0.00014795,2]
[419791302,1775381452967,-1500.0,0.00014795,2]
[419791303,1775381452978,-1500.0,0.00014795,2]
[419791304,1775381452988,-1500.0,0.00014795,2]
[419791305,1775381452998,-1500.0,0.00014795,2]
[419791306,1775381453008,-1500.0,0.00014795,2]
[419791307,1775381453019,-1500.0,0.00014795,2]
[419791308,1775381453030,-1500.0,0.00014795,2]
[419791309,1775381453040,-418.3764967,0.00014795,2]
[419791310,1775381453050,-1500.0,0.00014795,2]
[419791311,1775381453060,-1500.0,0.00014795,2]
[419791312,1775381453069,-1500.0,0.00014795,2]
[419791313,1775381453079,-553.41835149,0.00014795,2]
[419791314,1775381453089,-150.0,0.00014796,2]
[419791315,1775381453098,-150.0,0.000148,2]
[419791316,1775381453108,-150.0,0.000148,2]
[419791317,1775381453118,-150.0,0.00014807,2]
[419791318,1775381453128,-150.0,0.00014807,2]
[419791319,1775381453138,-150.0,0.00014813,2]
[419791320,1775381453148,-150.0,0.00014813,2]
[419791321,1775381453158,-262.55375685,0.00014815,2]
[419791322,1775381453167,-150.0,0.00014816,2]
[419791323,1775381453177,-150.0,0.00014817,2]
[419791324,1775381453187,-150.0,0.00014821,2]
[419791325,1775381453197,-150.0,0.00014827,2]
[419791326,1775381453207,-150.0,0.00014831,2]
[419791327,1775381453218,-150.0,0.00014836,2]
[419791328,1775381453228,-150.0,0.00014836,2]
[419791329,1775381453238,-150.0,0.00014839,2]
[419791330,1775381453248,-150.0,0.00014842,2]
[419791331,1775381453258,-150.0,0.00014844,2]
[419791332,1775381453268,-150.0,0.00014848,2]
[419791333,1775381453279,-150.0,0.00014849,2]
[419791334,1775381453289,-801.93779801,0.00014851,2]
[419791335,1775381453299,-391.26629735,0.00014851,2]
[419791336,1775381453311,-247.64633024,0.00014851,2]
[419791337,1775381453321,-15609.82,0.00014853,2]
[419791338,1775381453331,-4212.59,0.00014853,2]
[419791339,1775381453341,-1998.54,0.00014853,2]
[419791340,1775381453352,-150.0,0.00014863,2]
[419791341,1775381453362,-150.0,0.00014865,2]
[419791342,1775381453372,-150.0,0.00014865,2]
[419791343,1775381453382,-150.0,0.00014865,2]
[419791344,1775381453392,-150.0,0.00014867,2]
[419791345,1775381453402,-1000.0,0.00014877,2]
[419791346,1775381453411,-150.0,0.0001488,2]
[419791347,1775381453422,-150.0,0.0001488,2]
[419791348,1775381453432,-150.0,0.00014884,2]
[419791349,1775381453443,-150.0,0.00014885,2]
[419791350,1775381453452,-150.0,0.00014887,2]
[419791351,1775381453462,-150.0,0.0001489,2]
[419791352,1775381453471,-150.0,0.00014895,2]
[419791353,1775381453481,-150.0,0.00014895,2]
[419791354,1775381453491,-500.0,0.00014903,2]
[419791355,1775381453501,-500.0,0.00014903,2]
[419791356,1775381453512,-473.55,0.00014903,2]
[419791357,1775381453523,-709.93,0.00014903,2]
[419791358,1775381453533,-709.93,0.00014903,2]
[419791359,1775381453545,-709.93,0.00014903,2]
[419791360,1775381453555,-709.93,0.00014903,2]
[419791361,1775381453564,-710.11,0.00014903,2]
[419791362,1775381453575,-989.7,0.00014903,2]
[419791363,1775381453586,-989.7,0.00014903,2]
[419791364,1775381453596,-989.7,0.00014903,2]
[419791365,1775381453606,-989.7,0.00014903,2]
[419791366,1775381453617,-989.83053791,0.00014903,2]
[419791367,1775381453627,-1330.66,0.00014903,2]
[419791368,1775381453636,-1330.66,0.00014903,2]
[419791369,1775381453646,-1330.66,0.00014903,2]
[419791370,1775381453655,-1330.66,0.00014903,2]
[419791371,1775381453664,-1330.89918003,0.00014903,2]
[419791372,1775381453675,-889.96,0.00014903,2]
[419791373,1775381453684,-889.96,0.00014903,2]
[419791374,1775381453694,-889.96,0.00014903,2]
[419791375,1775381453704,-889.96,0.00014903,2]
[419791376,1775381453713,-889.97745143,0.00014903,2]
[419791377,1775381453723,-150.0,0.00014903,2]
[419791378,1775381453732,-3000.0,0.00014904,2]
[419791379,1775381453742,-200.5,0.00014905,2]
[419791380,1775381454040,-150.0,0.00014905,2]
[419791381,1775381454051,-150.0,0.00014912,2]
[419791382,1775381454060,-150.0,0.00014916,2]
[419791383,1775381454069,-150.0,0.00014921,2]
[419791384,1775381454079,-1000.0,0.00014922,2]
[419791385,1775381454089,-150.0,0.00014924,2]
[419791386,1775381454098,-150.0,0.00014924,2]
[419791387,1775381454107,-150.0,0.00014926,2]
[419791388,1775381454117,-895.64961562,0.00014929,2]
[419791389,1775381454126,-200.5,0.00014931,2]
[419791390,1775381454135,-150.0,0.00014933,2]
[419791391,1775381454145,-150.0,0.00014933,2]
[419791392,1775381454154,-150.0,0.00014933,2]
[419791393,1775381454164,-150.0,0.00014933,2]
[419791394,1775381454173,-150.0,0.00014939,2]
[419791395,1775381454183,-210.23868253,0.00014942,2]
[419791396,1775381454192,-150.0,0.00014942,2]
[419791397,1775381454202,-177.54343531,0.00014944,2]
[419791398,1775381454211,-150.0,0.00014944,2]
[419791399,1775381454221,-150.0,0.00014947,2]
[419791400,1775381454230,-150.0,0.00014953,2]
[419791401,1775381454239,-150.0,0.00014953,2]
[419791402,1775381454249,-200.5,0.00014956,2]
[419791403,1775381454259,-150.0,0.00014957,2]
[419791404,1775381454269,-150.0,0.00014957,2]
[419791405,1775381454279,-150.0,0.00014968,2]
[419791406,1775381454288,-150.0,0.00014968,2]
[419791407,1775381454298,-257.53,0.00014975,2]
[419791408,1775381454308,-150.0,0.00014975,2]
[419791409,1775381454317,-150.0,0.00014976,2]
[419791410,1775381454326,-150.0,0.00014982,2]
[419791411,1775381454336,-150.0,0.00014982,2]
[419791412,1775381454345,-150.0,0.00014987,2]
[419791413,1775381454354,-200.0,0.00014987,2]
[419791414,1775381454364,-1651.81367706,0.00014987,2]
[419791415,1775381454374,-201.93286099,0.00014987,2]
[419791416,1775381454383,-859.80605061,0.00014987,2]
[419791417,1775381454392,-200.0,0.00014987,2]
[419791418,1775381454402,-150.0,0.00014989,2]
[419791419,1775381454411,-417.43712337,0.00014993,2]
[419791420,1775381454420,-150.0,0.00014993,2]
[419791421,1775381454431,-150.0,0.00014994,2]
[419791422,1775381454440,-2834.08996434,0.00015,2]
[419791423,1775381454449,-8422.99193755,0.00015002,2]
[419791424,1775381454459,-871.95012592,0.00015002,2]
[419791425,1775381454467,-573.75,0.00015007,2]
[419791426,1775381454477,-150.0,0.00015008,2]
[419791427,1775381454488,-150.0,0.00015011,2]
[419791428,1775381454498,-150.0,0.00015011,2]
[419791429,1775381454507,-150.0,0.00015011,2]
[419791430,1775381454517,-150.0,0.00015011,2]
[419791431,1775381454527,-2000.0,0.00015015,2]
[419791432,1775381454536,-500.0,0.00015015,2]
[419791433,1775381454546,-150.0,0.00015019,2]
[419791434,1775381454555,-150.0,0.00015022,2]
[419791435,1775381454565,-155.73,0.00015023,2]
[419791436,1775381454575,-150.0,0.00015026,2]
[419791437,1775381454585,-150.0,0.00015029,2]
[419791438,1775381454595,-150.0,0.00015032,2]
[419791439,1775381454605,-276.522,0.00015033,2]
[419791440,1775381454614,-1267.843,0.00015033,2]
[419791441,1775381454626,-1229.18,0.00015033,2]
[419791442,1775381454636,-1047.087,0.00015033,2]
[419791443,1775381454645,-39608.9787347,0.00015035,2]
[419791444,1775381454655,-150.0,0.0001504,2]
[419791445,1775381454664,-150.0,0.0001504,2]
[419791446,1775381454674,-150.0,0.0001504,2]
[419791447,1775381454683,-150.0,0.0001504,2]
[419791448,1775381454692,-500.0,0.00015042,2]
[419791449,1775381454702,-150.0,0.00015045,2]
[419791450,1775381454712,-150.0,0.00015047,2]
[419791451,1775381454722,-150.0,0.00015053,2]
[419791452,1775381454732,-150.0,0.00015065,2]
[419791453,1775381454741,-900.0,0.00015068,2]
[419791454,1775381454751,-800.0,0.00015068,2]
[419791455,1775381454761,-150.0,0.00015069,2]
[419791456,1775381454770,-150.0,0.00015069,2]
[419791457,1775381454780,-150.0,0.00015071,2]
[419791458,1775381454789,-150.0,0.00015072,2]
[419791459,1775381454799,-150.0,0.00015074,2]
[419791460,1775381454809,-1000.0,0.00015082,2]
[419791461,1775381454818,-150.0,0.00015083,2]
[419791462,1775381454828,-1000.0,0.00015092,2]
[419791463,1775381454838,-150.0,0.00015093,2]
[419791464,1775381454847,-150.0,0.00015095,2]
[419791465,1775381454856,-150.0,0.00015096,2]
[419791466,1775381454866,-150.0,0.00015097,2]
[419791467,1775381454875,-150.0,0.00015098,2]
[419791468,1775381454884,-150.0,0.00015098,2]
[419791469,1775381454893,-150.0,0.00015101,2]
[419791470,1775381454903,-150.0,0.00015104,2]
[419791471,1775381454912,-7151.76505981,0.00015105,2]
[419791472,1775381454921,-5000.0,0.00015105,2]
[419791473,1775381454931,-5000.0,0.00015105,2]
[419791474,1775381454940,-5000.0,0.00015105,2]
[419791475,1775381454950,-150.0,0.00015111,2]
[419791476,1775381454961,-150.0,0.00015116,2]
[419791477,1775381454970,-150.0,0.00015119,2]
[419791478,1775381454981,-150.0,0.00015123,2]
[419791479,1775381454993,-150.0,0.00015127,2]
[419791480,1775381455003,-150.0,0.00015127,2]
[419791481,1775381455013,-150.0,0.00015136,2]
[419791482,1775381455024,-150.0,0.00015137,2]
[419791483,1775381455034,-150.0,0.00015137,2]
[419791484,1775381455043,-150.0,0.00015147,2]
[419791485,1775381455053,-150.0,0.00015148,2]
[419791486,1775381455062,-150.0,0.00015155,2]
[419791487,1775381455071,-150.0,0.00015156,2]
[419791488,1775381455081,-150.0,0.00015156,2]
[419791489,1775381455090,-150.0,0.00015158,2]
[419791490,1775381455101,-2011.03414735,0.00015164,2]
[419791491,1775381455111,-1140.03533821,0.00015164,2]
[419791492,1775381455123,-518.00448754,0.00015164,2]
[419791493,1775381455134,-150.0,0.00015165,2]
[419791494,1775381455145,-150.0,0.00015168,2]
[419791495,1775381455155,-150.0,0.00015173,2]
[419791496,1775381455165,-150.0,0.00015174,2]
[419791497,1775381455176,-150.0,0.00015174,2]
[419791498,1775381455187,-150.0,0.00015179,2]
[419791499,1775381455196,-150.5,0.0001518,2]
[419791500,1775381455207,-150.0,0.00015185,2]
[419791501,1775381455216,-150.0,0.00015185,2]
[419791502,1775381455226,-150.0,0.00015191,2]
[419791503,1775381455235,-322.47111,0.000152,2]
[419791504,1775381455245,-150.0,0.000152,2]
[419791505,1775381455255,-150.0,0.000152,2]
[419791506,1775381455264,-150.0,0.000152,2]
[419791507,1775381455273,-150.0,0.000152,2]
[419791508,1775381455283,-150.0,0.000152,2]
[419791509,1775381455292,-150.0,0.000152,2]
[419791510,1775381455302,-150.0,0.000152,2]
[419791511,1775381455311,-150.0,0.000152,2]
[419791512,1775381455321,-150.0,0.000152,2]
[419791513,1775381455330,-961.5668365,0.00015205,2]
[419791514,1775381455340,-150.0,0.00015209,2]
[419791515,1775381455350,-1000.0,0.00015209,2]
[419791516,1775381455360,-150.0,0.00015215,2]
[419791517,1775381455369,-150.0,0.00015215,2]
[419791518,1775381455379,-150.0,0.00015221,2]
[419791519,1775381455389,-150.0,0.00015226,2]
[419791520,1775381455398,-150.0,0.00015227,2]
[419791521,1775381455408,-992.99993992,0.00015232,2]
[419791522,1775381455417,-150.0,0.00015232,2]
[419791523,1775381455426,-150.0,0.00015235,2]
[419791524,1775381455437,-150.0,0.00015242,2]
[419791525,1775381455447,-1450.84243945,0.00015243,2]
[419791526,1775381455455,-150.0,0.00015244,2]
[419791527,1775381455465,-150.0,0.00015244,2]
[419791528,1775381455474,-150.0,0.00015245,2]
[419791529,1775381455484,-150.0,0.00015252,2]
[419791530,1775381455493,-150.0,0.00015253,2]
[419791531,1775381455503,-573.90311361,0.00015256,2]
[419791532,1775381455513,-373.59012784,0.00015258,2]
[419791533,1775381455522,-155.80569417,0.00015259,2]
[419791534,1775381455531,-961.5668365,0.0001526,2]
[419791535,1775381455542,-150.0,0.00015263,2]
[419791536,1775381455553,-150.0,0.00015263,2]
[419791537,1775381455562,-150.0,0.00015264,2]
[419791538,1775381455572,-150.0,0.00015273,2]
[419791539,1775381455581,-150.0,0.00015273,2]
[419791540,1775381455591,-150.0,0.00015277,2]
[419791541,1775381455602,-150.0,0.00015281,2]
[419791542,1775381455612,-150.0,0.00015284,2]
[419791543,1775381455623,-150.0,0.00015289,2]
[419791544,1775381455632,-150.0,0.00015296,2]
[419791545,1775381455643,-150.0,0.00015299,2]
[419791546,1775381455652,-150.0,0.00015302,2]
[419791547,1775381455661,-150.0,0.00015302,2]
[419791548,1775381455672,-150.0,0.00015303,2]
[419791549,1775381455683,-150.0,0.00015304,2]
[419791550,1775381455693,-150.0,0.00015305,2]
[419791551,1775381455703,-150.0,0.00015307,2]
[419791552,1775381455712,-943.51569877,0.00015308,2]
[419791553,1775381455722,-961.5668365,0.00015315,2]
[419791554,1775381455732,-150.0,0.00015317,2]
[419791555,1775381455742,-150.0,0.00015326,2]
[419791556,1775381455752,-150.0,0.00015328,2]
[419791557,1775381455762,-150.0,0.00015329,2]
[419791558,1775381455772,-436.66768098,0.0001533,2]
[419791559,1775381455781,-150.0,0.00015331,2]
[419791560,1775381455791,-150.0,0.00015331,2]
[419791561,1775381455801,-150.0,0.00015335,2]
[419791562,1775381455810,-500.0,0.00015338,2]
[419791563,1775381455820,-500.0,0.00015342,2]
[419791564,1775381455830,-2000.0,0.00015342,2]
[419791565,1775381455839,-2000.0,0.00015342,2]
[419791566,1775381455849,-2000.0,0.00015342,2]
[419791567,1775381455859,-2000.0,0.00015342,2]
[419791568,1775381455868,-2000.0,0.00015342,2]
[419791569,1775381455878,-1500.0,0.00015342,2]
[419791570,1775381455887,-2000.0,0.00015342,2]
[419791571,1775381455897,-1189.37318328,0.00015342,2]
[419791572,1775381455907,-762.51968471,0.00015342,2]
[419791573,1775381455916,-500.0,0.00015342,2]
[419791574,1775381455925,-1143.48326881,0.00015342,2]
[419791575,1775381455935,-2000.0,0.00015342,2]
[419791576,1775381455944,-1500.0,0.00015342,2]
[419791577,1775381455953,-693.24301277,0.00015342,2]
[419791578,1775381455962,-500.0,0.00015342,2]
[419791579,1775381455971,-415.42400348,0.00015342,2]
[419791580,1775381455980,-932.23819105,0.00015342,2]
[419791581,1775381455990,-506.60866792,0.00015342,2]
[419791582,1775381455999,-502.36401508,0.00015342,2]
[419791583,1775381456009,-2000.0,0.00015342,2]
[419791584,1775381456019,-1000.0,0.00015342,2]
[419791585,1775381456028,-2000.0,0.00015342,2]
[419791586,1775381456038,-347.07116371,0.00015342,2]
[419791587,1775381456048,-2000.0,0.00015342,2]
[419791588,1775381456060,-1253.85680119,0.00015342,2]
[419791589,1775381456070,-2000.0,0.00015342,2]
[419791590,1775381456079,-1000.0,0.00015342,2]
[419791591,1775381456089,-2000.0,0.00015342,2]
[419791592,1775381456098,-2000.0,0.00015342,2]
[419791593,1775381456109,-150.0,0.00015347,2]
[419791594,1775381456119,-150.0,0.00015353,2]
[419791595,1775381456128,-150.0,0.00015355,2]
[419791596,1775381456138,-150.0,0.0001536,2]
[419791597,1775381456147,-150.0,0.0001536,2]
[419791598,1775381456157,-150.0,0.0001536,2]
[419791599,1775381456166,-150.0,0.0001536,2]
[419791600,1775381456175,-1000.0,0.00015361,2]
[419791601,1775381456184,-347.56,0.00015363,2]
[419791602,1775381456195,-150.0,0.00015368,2]
[419791603,1775381456204,-961.5668365,0.0001537,2]
[419791604,1775381456213,-150.0,0.00015371,2]
[419791605,1775381456223,-150.0,0.00015374,2]
[419791606,1775381456232,-150.0,0.00015378,2]
[419791607,1775381456242,-150.0,0.0001538,2]
[419791608,1775381456251,-150.0,0.00015381,2]
[419791609,1775381456260,-150.0,0.00015389,2]
[419791610,1775381456270,-150.0,0.00015389,2]
[419791611,1775381456281,-150.0,0.00015389,2]
[419791612,1775381456292,-150.0,0.00015389,2]
[419791613,1775381456302,-150.0,0.00015392,2]
[419791614,1775381456313,-150.0,0.00015406,2]
[419791615,1775381456322,-150.0,0.00015407,2]
[419791616,1775381456438,-150.0,0.00015411,2]
[419791617,1775381456449,-150.0,0.00015413,2]
[419791618,1775381456457,-150.0,0.00015418,2]
[419791619,1775381456466,-150.0,0.00015418,2]
[419791620,1775381456475,-150.0,0.00015424,2]
[419791621,1775381456484,-150.0,0.00015425,2]
[419791622,1775381456493,-150.0,0.00015432,2]
[419791623,1775381456503,-150.0,0.00015432,2]
[419791624,1775381456512,-150.0,0.00015443,2]
[419791625,1775381456523,-150.0,0.00015443,2]
[419791626,1775381456531,-150.0,0.00015447,2]
[419791627,1775381456540,-150.0,0.00015447,2]
[419791628,1775381456549,-961.5668365,0.00015452,2]
[419791629,1775381456558,-150.0,0.00015453,2]
[419791630,1775381456567,-150.0,0.00015456,2]
[419791631,1775381456577,-150.0,0.00015458,2]
[419791632,1775381456587,-150.0,0.00015461,2]
[419791633,1775381456596,-150.0,0.00015467,2]
[419791634,1775381456606,-150.0,0.00015467,2]
[419791635,1775381456617,-150.0,0.00015467,2]
[419791636,1775381456627,-150.0,0.00015467,2]
[419791637,1775381456637,-150.0,0.00015474,2]
[419791638,1775381456646,-150.0,0.00015476,2]
[419791639,1775381456655,-150.0,0.00015476,2]
[419791640,1775381456665,-150.0,0.00015479,2]
[419791641,1775381456676,-150.0,0.00015484,2]
[419791642,1775381456687,-150.0,0.00015488,2]